bitfinex/quotes_ETHUSD_20240716
["timestamp","ask_amount","ask_price","bid_price","bid_amount"]
[1721144661473,0.03465774,3468.7,3467.7,2.88372]
[1721144661638,2.88292,3468.7,3467.8,2.88367]
[1721144661870,0.03465774,3468.6,3467.9,2.88357]
[1721144662359,0.03465774,3468.6,3467.7,0.519682]
[1721144662557,0.03465774,3468.6,3467.8,2.88362]
[1721144662970,0.03465774,3468.6,3467.9,2.88353]
[1721144663193,2.91765774,3468.6,3468.0,0.3403212]
[1721144663404,2.91765774,3468.6,3466.8,2.88448]
[1721144663405,2.88359,3467.9,3466.8,2.88448]
[1721144663554,2.88373,3467.8,3466.8,2.88448]
[1721144663758,0.03465774,3467.7,3467.0,2.88432]
[1721144663982,0.03465774,3467.7,3467.2,2.88413]
[1721144664687,2.88356,3468.0,3467.2,2.88413]
[1721144664888,0.03418547,3467.6,3467.1,0.57688]
[1721144665054,2.8836,3467.9,3467.1,3.46113]
[1721144665256,2.8836,3467.9,3466.8,2.88448]
[1721144665257,0.03418547,3467.5,3466.7,2.2633]
[1721144665501,6.417,3468.5,3467.1,2.88424]
[1721144665502,2.88354,3468.0,3467.1,2.88424]
[1721144665691,0.03417998,3467.4,3467.1,2.88424]
[1721144666070,2.88354,3468.0,3467.2,2.88415]
[1721144666267,0.03417998,3467.3,3467.0,2.88427]
[1721144666586,0.03417998,3467.2,3466.7,2.2633]
[1721144666979,2.88385,3467.6,3466.7,2.2633]
[1721144666980,2.88392,3467.5,3466.7,5.14787]
[1721144667184,2.88392,3467.5,3466.7,2.2633]
[1721144667394,2.88417,3467.2,3466.7,2.2633]
[1721144667606,0.03411587,3467.4,3466.7,2.2633]
[1721144667607,2.91817587,3467.4,3466.7,2.2633]
[1721144667898,2.8841,3467.3,3466.7,2.2633]
[1721144668083,0.03409755,3467.3,3466.7,5.662623]
[1721144668390,4.52487,3468.2,3466.7,5.662623]
[1721144668391,2.88407,3467.4,3466.7,2.2633]
[1721144668594,0.03409755,3467.2,3466.7,2.2633]
[1721144668783,2.88407,3467.4,3466.7,2.2633]
[1721144668784,2.91816191,3467.3,3466.7,2.2633]
[1721144668981,2.88419,3467.2,3466.3,2.88491]
[1721144669226,2.91826191,3467.2,3466.4,2.88481]
[1721144669384,0.03407191,3467.2,3466.6,2.88466]
[1721144669702,0.03407191,3467.2,3466.7,2.88458]
[1721144669880,2.88397,3467.5,3466.7,2.88458]
[1721144670082,2.88356,3468.0,3467.1,2.88424]
[1721144670292,0.03407191,3467.4,3467.1,2.88424]
[1721144671855,2.88392,3467.5,3466.6,3.7543712]
[1721144671995,2.88392,3467.5,3466.4,5.2357]
[1721144672201,2.88427,3467.1,3466.0,2.88515]
[1721144672396,2.88427,3467.1,3465.9,3.0]
[1721144672397,3.266,3467.0,3466.1,2.88501]
[1721144672601,3.266,3467.0,3466.4,2.88483]
[1721144672824,0.03388323,3466.9,3466.4,2.88483]
[1721144673034,0.03388323,3466.9,3466.5,0.288483]
[1721144673342,2.88426,3467.1,3466.3,2.88485]
[1721144673544,0.03388323,3466.8,3466.3,2.88485]
[1721144673839,0.03377076,3466.7,3466.3,2.88485]
[1721144674199,2.88413,3467.3,3466.4,2.88481]
[1721144674423,0.03377076,3466.6,3466.5,0.576966]
[1721144674637,2.88435,3467.0,3466.2,2.88494]
[1721144674819,0.03377076,3466.6,3465.9,2.88522]
[1721144675130,3.266,3466.8,3466.1,2.88501]
[1721144675330,0.03367365,3466.5,3466.0,5.88516]
[1721144675545,3.266,3466.8,3466.0,5.88516]
[1721144675747,0.03367365,3466.4,3466.1,3.992258]
[1721144676052,0.033648,3466.3,3466.1,3.992258]
[1721144676252,0.033648,3466.3,3466.2,2.885]
[1721144676450,3.266,3466.8,3466.1,2.88502]
[1721144676614,6.1502,3467.2,3466.2,2.88499]
[1721144676810,0.03356735,3466.7,3466.2,3.761991]
[1721144677013,2.88434,3467.0,3466.2,3.761991]
[1721144677246,0.03356735,3466.6,3466.0,5.8851]
[1721144677410,3.266,3466.5,3465.8,5.18676]
[1721144677611,3.29956735,3466.5,3465.8,5.18676]
[1721144677813,3.29956735,3466.5,3465.8,2.3015]
[1721144678069,3.29956735,3466.5,3465.5,5.88554]
[1721144678070,3.29956735,3466.5,3465.5,2.88554]
[1721144678273,3.29956735,3466.5,3465.5,2.88555]
[1721144678274,2.88503,3466.2,3465.5,2.88555]
[1721144678419,2.88489,3466.4,3465.5,2.88555]
[1721144678622,2.88484,3466.4,3465.7,2.8854]
[1721144678922,0.03356735,3466.3,3465.5,3.462634]
[1721144679162,0.03356735,3466.3,3465.5,2.88551]
[1721144679364,0.03356735,3466.3,3464.9,5.19037]
[1721144679365,2.885,3466.3,3465.0,2.88594]
[1721144679572,2.91862735,3466.2,3465.3,2.88569]
[1721144679972,2.91862735,3466.2,3465.5,2.88558]
[1721144680123,0.03356735,3466.2,3465.7,2.88536]
[1721144680463,2.88484,3466.4,3465.7,2.88536]
[1721144680683,0.03356735,3466.1,3465.7,2.88536]
[1721144680986,2.88492,3466.3,3465.3,2.88574]
[1721144681138,3.29956735,3466.0,3465.2,2.88582]
[1721144681323,3.29956735,3466.0,3464.9,5.3043]
[1721144681524,3.29956735,3466.0,3465.4,2.88562]
[1721144681776,0.03356735,3466.0,3465.8,2.88531]
[1721144681977,2.88478,3466.5,3465.6,2.88544]
[1721144682129,0.03336571,3466.4,3465.6,2.88544]
[1721144682322,2.91826571,3466.4,3465.6,2.88545]
[1721144682526,2.91826571,3466.4,3465.6,0.57711]
[1721144682527,0.03336571,3466.4,3465.6,0.57711]
[1721144682767,3.0,3467.1,3465.1,2.88587]
[1721144682768,9.15025,3467.1,3465.9,2.88518]
[1721144682951,9.15025,3467.1,3466.1,2.88508]
[1721144682952,3.266,3467.1,3466.1,2.88508]
[1721144683170,0.03336571,3467.0,3466.2,2.88495]
[1721144683374,0.03336571,3467.0,3466.0,2.88511]
[1721144683375,2.88444,3466.9,3466.0,2.88511]
[1721144683683,2.88475,3466.5,3465.6,2.88545]
[1721144683852,2.88475,3466.5,3465.7,2.88541]
[1721144684188,0.03329971,3466.4,3465.6,0.288545]
[1721144684339,0.03329971,3466.4,3465.6,3.174035]
[1721144684698,3.266,3466.6,3465.6,3.174035]
[1721144684699,3.266,3466.6,3466.0,2.88516]
[1721144684858,0.03332905,3466.3,3466.0,2.88516]
[1721144685039,3.266,3466.6,3465.8,2.88533]
[1721144685243,0.03332905,3466.2,3465.8,2.88533]
[1721144685592,0.03332905,3466.1,3465.8,2.88533]
[1721144685738,3.266,3466.6,3465.8,2.88533]
[1721144685940,2.91815905,3466.5,3465.5,2.88558]
[1721144686399,2.88492,3466.3,3465.5,2.88558]
[1721144686547,2.88492,3466.3,3465.6,2.88548]
[1721144687054,0.03332905,3466.2,3465.5,1.118695]
[1721144687246,0.03332905,3466.2,3465.6,2.88549]
[1721144687592,0.03332905,3466.2,3465.8,2.88533]
[1721144687795,0.03332905,3466.2,3466.1,2.88508]
[1721144688074,6.15032,3467.1,3466.1,2.88508]
[1721144688075,6.15032,3467.1,3466.2,2.88495]
[1721144688442,2.88443,3466.9,3466.2,2.88495]
[1721144688938,6.15032,3467.1,3466.7,2.88452]
[1721144688939,3.266,3467.1,3466.7,2.88452]
[1721144689146,1.6415,3468.1,3466.3,2.4841]
[1721144689147,0.03329605,3466.8,3466.6,2.88465]
[1721144689392,0.03329605,3466.8,3466.3,2.4841]
[1721144689393,6.14984,3467.6,3466.7,2.88458]
[1721144689576,6.14984,3467.6,3466.8,0.576932]
[1721144689782,6.14984,3467.6,3466.7,2.88458]
[1721144690661,2.88403,3467.4,3466.7,2.88458]
[1721144691411,2.88403,3467.4,3466.5,2.88474]
[1721144691577,2.88403,3467.4,3466.6,2.88464]
[1721144691807,2.88417,3467.2,3466.3,5.36901]
[1721144691971,2.88426,3467.1,3466.3,2.88491]
[1721144692399,2.88426,3467.1,3466.4,2.88483]
[1721144693403,2.88426,3467.1,3466.1,0.288508]
[1721144693560,2.88426,3467.1,3466.0,2.88515]
[1721144693561,2.88448,3466.9,3466.0,2.88515]
[1721144693762,6.15026,3467.1,3465.9,2.88517]
[1721144693763,2.88451,3466.8,3465.9,2.88517]
[1721144693976,2.88451,3466.8,3465.8,5.24589]
[1721144693977,2.88451,3466.8,3466.0,2.88513]
[1721144694175,2.88434,3467.0,3466.1,2.88508]
[1721144694659,2.88442,3466.9,3466.0,2.88509]
[1721144694900,2.88442,3466.9,3466.1,2.88508]
[1721144695103,2.88452,3466.8,3465.9,2.88521]
[1721144695287,2.88492,3466.3,3465.4,2.8856]
[1721144695611,2.88492,3466.3,3465.5,2.88552]
[1721144695819,2.885,3466.2,3465.4,2.88565]
[1721144696428,2.885,3466.2,3465.5,2.88557]
[1721144696720,3.266,3466.5,3465.5,2.88557]
[1721144696864,0.03337822,3466.1,3465.8,2.88533]
[1721144697058,3.0,3466.9,3465.8,2.88533]
[1721144697310,0.03324805,3466.0,3465.8,2.88533]
[1721144697481,2.88478,3466.5,3465.8,2.88533]
[1721144697803,3.0,3466.9,3466.0,2.88516]
[1721144697804,0.03324805,3466.4,3466.0,2.88516]
[1721144698165,2.88462,3466.7,3466.0,2.88516]
[1721144698366,6.15083,3466.5,3465.6,2.88548]
[1721144698565,3.266,3466.5,3465.6,2.88548]
[1721144698768,2.91806155,3466.4,3465.7,2.88539]
[1721144699002,2.91806155,3466.4,3465.8,0.820947]
[1721144699368,2.91806155,3466.4,3465.5,5.32412]
[1721144699572,2.91806155,3466.4,3465.5,2.4386]
[1721144699573,2.88511,3466.1,3465.5,2.4386]
[1721144699817,0.03324438,3466.0,3465.5,2.4386]
[1721144700183,0.03324438,3466.0,3465.0,2.88598]
[1721144700510,2.91842438,3466.0,3465.3,2.88574]
[1721144700683,0.03324438,3466.0,3465.4,2.88566]
[1721144700871,0.03324438,3466.0,3465.1,3.832458]
[1721144700872,0.03324438,3466.0,3465.7,2.88541]
[1721144701071,3.266,3467.0,3465.9,2.88522]
[1721144701385,3.266,3467.0,3465.8,2.4386]
[1721144701386,2.88389,3467.6,3466.7,2.88453]
[1721144701566,2.88389,3467.6,3466.0,2.94282439]
[1721144701567,2.88401,3467.4,3466.3,2.88488]
[1721144701768,2.88409,3467.3,3466.3,2.88488]
[1721144701968,3.266,3467.0,3466.0,2.88515]
[1721144702165,3.266,3467.0,3465.8,2.4386]
[1721144702166,2.88442,3466.9,3465.8,2.4386]
[1721144702409,2.88444,3466.9,3466.0,2.88516]
[1721144702572,2.88458,3466.7,3466.1,0.5613939]
[1721144702912,2.88458,3466.7,3465.8,5.32387]
[1721144702913,2.88477,3466.5,3465.8,2.4386]
[1721144703694,2.88458,3466.7,3465.8,5.32393]
[1721144703916,3.266,3467.0,3465.8,2.4386]
[1721144703917,6.15034,3467.0,3465.8,2.4386]
[1721144704071,6.15034,3467.0,3466.0,2.88512]
[1721144704072,2.88457,3466.8,3466.0,2.88512]
[1721144704271,2.88457,3466.8,3465.8,5.32393]
[1721144704272,2.88477,3466.5,3465.8,2.4386]
[1721144704622,2.88477,3466.5,3465.8,5.856336]
[1721144704788,1.6415,3466.4,3465.1,0.832458]
[1721144705113,6.15122,3466.0,3465.1,2.88591]
[1721144705281,2.88526,3465.9,3465.1,2.88591]
[1721144705696,2.88533,3465.8,3465.1,2.88591]
[1721144706199,2.88511,3466.1,3465.1,2.88591]
[1721144706409,2.8844,3467.0,3465.2,8.4504]
[1721144706621,2.8844,3467.0,3465.5,2.88555]
[1721144706771,2.8844,3467.0,3466.2,2.88497]
[1721144706975,2.88443,3466.9,3466.2,2.88497]
[1721144707172,2.88472,3466.6,3465.8,2.8853]
[1721144707411,2.88472,3466.6,3465.8,3.17383]
[1721144707593,3.266,3467.1,3466.1,2.88508]
[1721144707792,3.266,3467.1,3466.4,2.88483]
[1721144707989,3.266,3467.1,3466.3,2.3793]
[1721144707990,6.15032,3467.1,3466.3,2.3793]
[1721144708200,3.266,3467.1,3466.3,5.26418]
[1721144708476,6.15026,3467.1,3466.4,3.411228]
[1721144708677,2.884,3467.4,3466.6,2.8846]
[1721144709085,4.17100538,3467.6,3466.7,2.88454]
[1721144709416,6.14984,3467.6,3466.8,2.88444]
[1721144709621,2.88408,3467.4,3466.6,2.88466]
[1721144710189,2.88399,3467.5,3466.7,2.88457]
[1721144710516,3.266,3467.6,3466.9,2.88439]
[1721144710703,6.78872538,3467.8,3466.9,2.88439]
[1721144710922,0.90500538,3467.9,3467.0,0.05768575]
[1721144711221,2.88325,3468.3,3467.6,2.88378]
[1721144711715,0.90500538,3468.4,3467.6,2.88378]
[1721144711875,0.03025518,3468.2,3467.7,2.88374]
[1721144712076,3.78810538,3468.5,3467.7,3.460513]
[1721144712415,3.78810538,3468.5,3466.6,6.9075098]
[1721144712416,0.90568091,3468.5,3468.0,2.8835]
[1721144712576,0.03025518,3468.4,3468.1,2.88336]
[1721144712782,3.266,3468.6,3468.1,2.88336]
[1721144713118,2.91335518,3468.5,3467.8,2.3495]
[1721144713280,2.88317,3468.4,3467.8,2.3495]
[1721144713481,2.88318,3468.4,3467.8,2.3495]
[1721144713706,0.03041515,3468.3,3467.8,2.3495]
[1721144714516,0.03042434,3468.2,3467.8,2.3495]
[1721144714894,2.88318,3468.4,3467.8,2.3495]
[1721144715092,0.03042802,3468.1,3467.8,2.3495]
[1721144715422,0.03043721,3468.0,3467.8,2.3495]
[1721144715621,2.88317,3468.4,3467.8,2.3495]
[1721144715781,0.03043905,3468.3,3467.8,2.3495]
[1721144717076,0.03043905,3468.3,3467.8,2.872841]
[1721144717279,0.03043905,3468.3,3468.1,2.88342]
[1721144717585,0.03043537,3468.2,3467.9,2.88351]
[1721144717785,2.88285,3468.8,3467.9,2.88351]
[1721144717983,0.03044272,3468.7,3467.9,2.88357]
[1721144718400,2.91337272,3468.7,3467.9,2.88357]
[1721144718600,2.91337272,3468.7,3467.8,2.3495]
[1721144718601,2.88303,3468.6,3467.8,2.3495]
[1721144718801,0.03045559,3468.5,3468.0,2.88346]
[1721144719005,5.88289,3468.8,3468.1,2.8834]
[1721144719234,0.03045559,3468.7,3468.1,2.8834]
[1721144719627,0.03045559,3468.7,3467.8,2.872824]
[1721144719926,3.78799091,3469.5,3468.6,2.88295]
[1721144720086,3.266,3469.6,3468.2,2.88333]
[1721144720087,4.17168091,3469.6,3468.2,2.88333]
[1721144720286,2.88273,3469.0,3468.1,2.88334]
[1721144720493,2.88258,3469.2,3468.3,2.8832]
[1721144720686,0.03047581,3468.9,3468.3,2.8832]
[1721144720905,2.88267,3469.0,3468.1,3.7590164]
[1721144721114,2.91331581,3468.8,3467.8,2.3495]
[1721144721314,2.88317,3468.4,3467.5,2.88391]
[1721144721502,2.88317,3468.4,3467.4,2.88396]
[1721144721714,2.88343,3468.1,3467.3,2.3172]
[1721144722033,3.90568091,3468.5,3467.3,2.3172]
[1721144722243,2.88376,3467.7,3466.9,2.88441]
[1721144722536,2.88376,3467.7,3466.9,3.77976998]
[1721144722691,2.9146688,3467.6,3466.9,3.77976998]
[1721144723691,0.0308288,3467.6,3466.9,3.77976998]
[1721144724000,0.0308288,3467.6,3467.0,2.8843]
[1721144724334,2.88368,3467.8,3467.0,2.8843]
[1721144724528,0.03052001,3467.5,3467.1,2.88424]
[1721144724714,2.88345,3468.1,3467.1,2.88424]
[1721144724902,0.03052001,3467.4,3467.3,2.88408]
[1721144725120,2.88332,3468.3,3467.5,2.88389]
[1721144725537,7.16934776,3468.6,3467.6,2.88381]
[1721144725538,0.03052552,3468.2,3467.6,2.88381]
[1721144725745,0.03052552,3468.2,3467.7,5.89454]
[1721144725891,2.88298,3468.7,3467.8,2.88366]
[1721144726089,0.0305292,3468.1,3467.8,2.88366]
[1721144726292,2.88302,3468.6,3467.7,5.89462]
[1721144726545,0.03058617,3468.0,3467.7,5.89462]
[1721144726697,2.88302,3468.6,3467.8,0.877845]
[1721144726897,0.03058985,3467.9,3467.8,6.645165]
[1721144727131,2.88277,3468.9,3468.1,2.88334]
[1721144727344,3.266,3469.1,3468.1,2.88334]
[1721144727345,6.14864,3469.1,3468.3,2.88319]
[1721144727532,0.03061007,3468.8,3468.3,2.88319]
[1721144727689,2.88268,3469.0,3468.3,2.88319]
[1721144727889,0.03061374,3468.7,3468.3,2.88319]
[1721144728157,2.88264,3469.1,3468.4,2.88316]
[1721144728326,0.03067807,3468.6,3468.4,2.88316]
[1721144728529,3.0,3469.0,3468.4,2.88316]
[1721144728750,0.03067807,3468.5,3468.4,2.88316]
[1721144728903,2.88229,3469.5,3468.7,2.88287]
[1721144729296,2.8821,3469.7,3468.9,2.88268]
[1721144729537,6.1478,3470.1,3469.2,2.8825]
[1721144729746,2.88135,3470.6,3469.6,2.88215]
[1721144729904,2.88135,3470.6,3469.3,2.4427]
[1721144729905,1.20446368,3471.0,3469.3,2.4427]
[1721144730259,2.88134,3470.6,3469.7,2.88207]
[1721144730540,2.88101,3471.0,3470.1,2.88175]
[1721144730748,3.266,3471.2,3470.1,2.88175]
[1721144730901,3.266,3471.2,3470.2,2.88166]
[1721144731096,2.88103,3471.0,3469.7,0.288207]
[1721144731301,2.88119,3470.8,3469.9,2.88192]
[1721144731541,2.88119,3470.8,3469.7,2.88207]
[1721144731972,2.88119,3470.8,3469.8,2.88193]
[1721144732129,2.88145,3470.5,3469.6,2.88213]
[1721144732451,2.88153,3470.4,3469.4,2.88234]
[1721144732648,2.88153,3470.4,3469.6,2.88216]
[1721144732960,2.88139,3470.6,3469.7,2.88207]
[1721144733156,2.88141,3470.6,3469.7,2.88207]
[1721144733378,2.88128,3470.7,3469.8,2.88193]
[1721144733660,2.88128,3470.7,3469.9,2.88189]
[1721144733874,2.88128,3470.7,3469.5,0.820754]
[1721144733875,2.88128,3470.7,3470.0,0.576382]
[1721144734023,2.88138,3470.6,3469.6,2.88215]
[1721144734221,2.88138,3470.6,3469.3,2.4427]
[1721144734222,2.88162,3470.3,3469.3,2.4427]
[1721144734765,2.88143,3470.5,3469.4,2.88233]
[1721144735376,3.266,3470.0,3468.7,2.3457]
[1721144735530,2.88228,3469.5,3468.7,2.3457]
[1721144736168,3.04,3469.9,3468.7,2.3457]
[1721144736325,2.88256,3469.2,3468.7,2.3457]
[1721144736999,2.88234,3469.4,3468.7,2.3457]
[1721144737146,2.88247,3469.3,3468.7,2.3457]
[1721144737345,2.88252,3469.2,3468.7,2.3457]
[1721144737551,8.92197,3469.9,3468.7,5.22857]
[1721144737552,2.88226,3469.5,3468.7,5.22857]
[1721144739070,2.88234,3469.4,3468.7,2.3457]
[1721144739276,2.88223,3469.6,3468.7,5.22854]
[1721144739487,2.88213,3469.7,3468.7,5.22854]
[1721144739488,2.88227,3469.5,3468.7,5.22854]
[1721144740164,6.14789,3470.0,3469.0,2.88267]
[1721144740366,2.88181,3470.1,3469.3,2.8824]
[1721144740700,2.88196,3469.9,3468.8,2.88279]
[1721144740852,2.88196,3469.9,3468.7,5.59048057]
[1721144740853,2.88211,3469.7,3468.7,5.59048057]
[1721144741055,2.88218,3469.6,3468.7,2.3457]
[1721144741277,2.88235,3469.4,3468.7,2.3457]
[1721144741859,0.03012604,3469.3,3468.7,2.3457]
[1721144742055,0.03012604,3469.3,3468.9,2.88274]
[1721144742271,2.88184,3470.0,3469.2,2.8825]
[1721144742563,0.03012604,3469.2,3469.1,2.88259]
[1721144742766,2.88193,3469.9,3468.7,2.3457]
[1721144743078,0.03012604,3469.8,3469.2,2.88245]
[1721144743296,0.03012604,3469.8,3468.7,2.3457]
[1721144743459,0.03012604,3469.8,3469.0,2.88266]
[1721144743654,2.91220604,3469.8,3469.0,2.88266]
[1721144744188,2.91220604,3469.8,3469.1,2.88255]
[1721144744189,0.03012604,3469.8,3469.1,2.88255]
[1721144744487,2.91213604,3469.8,3469.1,2.88255]
[1721144745263,2.88211,3469.7,3468.8,0.23457]
[1721144745599,2.88211,3469.7,3468.8,3.11738]
[1721144745783,0.03012604,3469.6,3468.9,2.88274]
[1721144745967,0.03012604,3469.6,3468.9,3.717322]
[1721144746169,0.03012604,3469.6,3468.9,0.834582]
[1721144746370,2.91231604,3469.6,3468.8,3.11738]
[1721144746712,2.91231604,3469.6,3468.9,2.88275]
[1721144746855,0.03012604,3469.6,3469.0,2.88263]
[1721144747087,0.03012604,3469.6,3468.8,0.23457]
[1721144747428,0.03012604,3469.6,3468.9,0.546316]
[1721144747597,0.03012604,3469.6,3468.8,0.23457]
[1721144747803,2.91231604,3469.6,3468.8,3.1174]
[1721144748431,0.03012604,3469.6,3468.8,3.1174]
[1721144748594,0.03012604,3469.6,3469.1,2.88257]
[1721144748791,5.8818,3470.1,3469.2,2.88249]
[1721144748993,0.03020514,3469.5,3469.2,2.88249]
[1721144749187,5.8818,3470.1,3468.8,3.11738]
[1721144749188,2.88193,3469.9,3468.8,3.11738]
[1721144749493,0.03026401,3469.4,3468.8,2.88281]
[1721144749693,6.1481,3469.7,3468.8,2.88281]
[1721144749914,0.03026217,3469.3,3468.8,2.88281]
[1721144750093,6.1481,3469.7,3468.8,2.88281]
[1721144750291,0.0302401,3469.2,3468.9,2.88275]
[1721144750512,6.1481,3469.7,3469.0,2.88266]
[1721144750698,0.0302401,3469.1,3469.0,2.88266]
[1721144751023,0.0302401,3469.1,3468.9,2.88275]
[1721144751024,0.0302401,3469.1,3468.7,2.3457]
[1721144751228,0.03024562,3469.0,3468.9,2.88268]
[1721144751392,0.03024562,3469.0,3468.7,5.22861]
[1721144751595,2.88221,3469.6,3468.8,2.88282]
[1721144751800,6.1481,3469.7,3468.7,2.3457]
[1721144751801,0.03024562,3468.9,3468.7,2.3457]
[1721144752144,0.03021803,3468.8,3467.2,2.88414]
[1721144752293,3.266,3468.5,3467.6,2.3801]
[1721144752628,3.266,3468.5,3467.7,2.88372]
[1721144752789,2.91335573,3468.4,3467.6,2.3801]
[1721144753336,2.91335573,3468.4,3467.7,2.88375]
[1721144753692,2.91335573,3468.4,3467.6,2.3801]
[1721144753889,2.91335573,3468.4,3467.7,2.8837]
[1721144753890,0.03017573,3468.4,3467.7,2.8837]
[1721144754301,0.03017573,3468.4,3467.6,0.8436424]
[1721144754501,2.8833,3468.3,3467.5,2.88386]
[1721144754717,0.03017573,3468.4,3467.0,5.35362]
[1721144754718,2.88361,3467.9,3467.0,5.35362]
[1721144754914,6.14957,3468.0,3467.0,5.35362]
[1721144755140,2.91372908,3467.8,3467.0,2.4693]
[1721144755301,2.88376,3467.7,3467.0,5.35361]
[1721144755507,2.91353088,3467.7,3467.1,2.88424]
[1721144755825,0.02977088,3467.7,3467.1,2.88424]
[1721144756029,0.02977088,3467.7,3467.0,2.4693]
[1721144756209,0.02977088,3467.7,3467.0,5.35358]
[1721144756746,2.884,3467.4,3466.5,2.8847]
[1721144756914,2.88409,3467.3,3466.5,0.81514]
[1721144757119,2.88418,3467.2,3466.3,2.2667]
[1721144757321,2.8843,3467.1,3466.3,2.2667]
[1721144757524,2.91397331,3467.1,3466.3,2.2667]
[1721144757724,0.02967331,3467.1,3466.3,5.1516]
[1721144758035,0.02967331,3467.1,3466.6,2.88461]
[1721144758234,6.266,3468.0,3466.7,2.88457]
[1721144758437,2.88384,3467.6,3466.7,2.88457]
[1721144758634,2.88384,3467.6,3466.5,2.88474]
[1721144758635,2.884,3467.4,3466.5,2.88469]
[1721144758809,2.884,3467.4,3466.6,2.88464]
[1721144759142,0.02944318,3467.3,3466.5,2.88469]
[1721144759345,2.88418,3467.2,3466.3,5.1516]
[1721144759760,0.02943395,3467.1,3466.4,2.88483]
[1721144760165,2.91368395,3467.1,3466.3,2.2667]
[1721144760451,0.02943395,3467.1,3466.5,2.88474]
[1721144760752,2.884,3467.4,3466.5,2.88474]
[1721144760955,0.02943581,3467.0,3466.5,2.88474]
[1721144761165,3.0,3467.9,3466.3,2.2667]
[1721144761166,2.88431,3467.1,3466.3,2.2667]
[1721144761476,2.88409,3467.3,3466.5,2.88475]
[1721144761755,0.02943581,3467.2,3466.7,2.88457]
[1721144761970,0.02943581,3467.2,3466.6,0.288475]
[1721144762199,2.88384,3467.6,3466.6,2.88459]
[1721144762330,0.02941555,3467.1,3466.7,2.88455]
[1721144762632,3.0,3467.5,3466.7,2.88455]
[1721144763149,2.91343976,3467.4,3466.4,2.88481]
[1721144763346,2.91343976,3467.4,3466.5,2.88474]
[1721144763670,2.91343976,3467.4,3466.2,2.88497]
[1721144763671,2.88434,3467.0,3466.2,2.88497]
[1721144763827,0.02939897,3466.9,3466.2,2.88497]
[1721144764030,0.02939897,3466.9,3466.2,3.461983]
[1721144764437,2.88453,3466.8,3466.0,2.88515]
[1721144765167,2.91399817,3466.7,3465.8,5.19293]
[1721144765349,2.88475,3466.5,3465.8,2.3076]
[1721144765904,2.88492,3466.3,3465.5,2.88553]
[1721144766074,2.88492,3466.3,3465.4,2.88564]
[1721144766274,2.88492,3466.3,3465.3,2.88573]
[1721144766275,0.0293916,3466.2,3465.3,2.88573]
[1721144766481,2.88513,3466.1,3465.2,5.25043]
[1721144766640,0.02930317,3466.0,3465.2,5.25043]
[1721144766835,0.02930317,3466.0,3465.4,2.88566]
[1721144767197,2.88509,3466.1,3465.4,2.88566]
[1721144767598,0.02930317,3466.0,3465.4,2.88566]
[1721144768093,2.885,3466.2,3465.4,2.88566]
[1721144768401,3.266,3466.6,3465.2,6.064066]
[1721144768402,0.02930317,3466.1,3465.9,2.8852]
[1721144768698,3.0,3466.7,3465.9,0.28852]
[1721144768897,2.88451,3466.8,3466.0,2.8851]
[1721144769190,2.88459,3466.7,3465.6,2.88547]
[1721144769402,2.9138121,3466.7,3465.7,2.88538]
[1721144769603,2.88483,3466.4,3465.7,2.88538]
[1721144769808,2.88473,3466.6,3465.7,3.462481]
[1721144770010,0.0290563,3466.3,3465.7,2.88538]
[1721144770310,2.88484,3466.4,3465.7,2.88535]
[1721144770479,2.88503,3466.2,3465.2,3.178236]
[1721144770814,2.88492,3466.3,3465.6,2.88542]
[1721144771116,2.88505,3466.2,3465.4,2.88564]
[1721144771271,2.88492,3466.3,3465.4,2.88564]
[1721144771272,2.91417026,3466.1,3465.4,2.88564]
[1721144771931,2.88552,3465.6,3464.3,2.3864]
[1721144772218,2.88575,3465.3,3464.3,2.3864]
[1721144772423,0.0290692,3465.5,3464.7,2.88623]
[1721144772595,6.15154,3465.6,3464.7,2.88623]
[1721144772596,0.02898074,3465.2,3464.7,2.88623]
[1721144772794,2.8854,3465.8,3465.1,2.88591]
[1721144773007,2.8854,3465.8,3464.8,2.88613]
[1721144773008,0.0288591,3465.1,3464.8,2.88613]
[1721144773310,2.8853,3465.9,3465.2,2.88582]
[1721144773510,3.0,3466.0,3465.2,2.88582]
[1721144773511,0.0288591,3465.8,3465.2,2.88582]
[1721144773829,3.266,3466.1,3465.2,3.463002]
[1721144774130,2.88505,3466.2,3465.4,2.88561]
[1721144774342,0.02878903,3466.1,3465.6,2.88543]
[1721144774621,0.02878903,3466.1,3465.8,2.88525]
[1721144774820,0.02878903,3466.1,3465.2,2.4288]
[1721144774821,3.266,3466.1,3465.2,2.4288]
[1721144775038,2.88534,3465.8,3465.2,2.4288]
[1721144775324,3.266,3466.1,3464.7,2.88624]
[1721144775325,2.88542,3465.7,3464.7,2.88624]
[1721144775488,2.88559,3465.5,3464.8,0.831504]
[1721144775689,0.02873375,3465.4,3464.8,0.831504]
[1721144776097,2.91440375,3465.4,3464.8,0.831504]
[1721144776388,2.88606,3465.0,3464.1,5.23484]
[1721144776920,0.02872637,3464.9,3464.1,5.23484]
[1721144777125,2.88634,3464.6,3464.1,2.3481]
[1721144777325,0.02872083,3464.5,3463.6,2.8871]
[1721144777532,0.02872083,3464.5,3463.6,2.925535]
[1721144777533,2.91519083,3464.5,3463.6,2.925535]
[1721144777686,2.91519083,3464.5,3463.6,5.812695]
[1721144777887,2.91519083,3464.5,3463.7,2.88708]
[1721144778388,2.91519083,3464.5,3463.6,2.925535]
[1721144778389,0.02872083,3464.5,3463.6,2.925535]
[1721144778636,2.88689,3464.0,3463.1,2.2895]
[1721144778925,2.91542663,3463.9,3463.1,5.17702]
[1721144779129,2.88709,3463.7,3463.1,2.2895]
[1721144779289,3.266,3464.1,3463.1,2.2895]